[Event "*** Titled Tuesday Blitz"]
[Site "Chess.com"]
[Date "2021.04.27"]
[Round "11"]
[White "MPGM"]
[Black "Nikolakis2014"]
[Result "0-1"]
[WhiteElo "2501"]
[BlackElo "2631"]
[TimeControl "180+1"]
[EndTime "12:04:13 PDT"]
[Termination "Nikolakis2014 won on time"]

1. c4 {[%clk 0:03:00.9]} 1... Nf6 {[%clk 0:02:58.5]} 2. Nc3 {[%clk 0:03:00.4]}
2... e6 {[%clk 0:02:58.8]} 3. d4 {[%clk 0:02:57.7]} 3... Bb4 {[%clk 0:02:58.1]}
4. f3 {[%clk 0:02:58]} 4... d5 {[%clk 0:02:57.3]} 5. a3 {[%clk 0:02:56.5]} 5...
Be7 {[%clk 0:02:57.3]} 6. e4 {[%clk 0:02:55.6]} 6... dxe4 {[%clk 0:02:57.6]} 7.
fxe4 {[%clk 0:02:56.5]} 7... e5 {[%clk 0:02:58.2]} 8. d5 {[%clk 0:02:55.9]} 8...
Bc5 {[%clk 0:02:57.3]} 9. Nf3 {[%clk 0:02:54.9]} 9... O-O {[%clk 0:02:56.1]} 10.
Qc2 {[%clk 0:02:44]} 10... Nbd7 {[%clk 0:02:51.5]} 11. Bg5 {[%clk 0:02:26.2]}
11... h6 {[%clk 0:02:50]} 12. Bh4 {[%clk 0:02:26.9]} 12... a5 {[%clk 0:02:49.7]}
13. O-O-O {[%clk 0:02:20.5]} 13... Re8 {[%clk 0:02:49.7]} 14. h3 {[%clk
0:02:15.7]} 14... Nf8 {[%clk 0:02:49.4]} 15. g4 {[%clk 0:02:11.4]} 15... Ng6
{[%clk 0:02:47.1]} 16. Bf2 {[%clk 0:02:11.6]} 16... Bxf2 {[%clk 0:02:37.5]} 17.
Qxf2 {[%clk 0:02:12.5]} 17... c6 {[%clk 0:02:37.9]} 18. g5 {[%clk 0:01:38.1]}
18... hxg5 {[%clk 0:02:32.8]} 19. Nxg5 {[%clk 0:01:39]} 19... Nf4 {[%clk
0:02:28]} 20. dxc6 {[%clk 0:01:33.4]} 20... Qc7 {[%clk 0:02:25.7]} 21. Nb5
{[%clk 0:01:32.1]} 21... Qxc6 {[%clk 0:02:15.6]} 22. Rd6 {[%clk 0:01:31.8]}
22... Nxe4 {[%clk 0:02:15.9]} 23. Nxe4 {[%clk 0:00:48.6]} 23... Qxe4 {[%clk
0:02:15.3]} 24. Rg1 {[%clk 0:00:49.3]} 24... Qh7 {[%clk 0:01:48.3]} 25. Nc7
{[%clk 0:00:41.1]} 25... Bf5 {[%clk 0:01:48]} 26. Nxe8 {[%clk 0:00:37.5]} 26...
Rxe8 {[%clk 0:01:47.2]} 27. Qd2 {[%clk 0:00:27.3]} 27... Qh4 {[%clk 0:01:43.2]}
28. b3 {[%clk 0:00:23.5]} 28... Bg6 {[%clk 0:01:38.9]} 29. Kb2 {[%clk
0:00:21.3]} 29... Qe7 {[%clk 0:01:31.6]} 30. c5 {[%clk 0:00:21]} 30... Ne6
{[%clk 0:01:28.7]} 31. Bc4 {[%clk 0:00:20.5]} 31... Bf5 {[%clk 0:01:26.1]} 32.
Bxe6 {[%clk 0:00:15.3]} 32... Bxe6 {[%clk 0:01:25.6]} 33. Qg5 {[%clk 0:00:15.9]}
33... f6 {[%clk 0:01:16]} 34. Qe3 {[%clk 0:00:14.8]} 34... Bf5 {[%clk
0:01:11.2]} 35. h4 {[%clk 0:00:11.8]} 35... Qf7 {[%clk 0:01:08.2]} 36. Qf3
{[%clk 0:00:10.6]} 36... Be6 {[%clk 0:01:03]} 37. h5 {[%clk 0:00:10.2]} 37... a4
{[%clk 0:01:03.4]} 38. h6 {[%clk 0:00:09.7]} 38... g5 {[%clk 0:01:03.6]} 39. Rf1
{[%clk 0:00:06.3]} 39... f5 {[%clk 0:01:02.1]} 40. Qe3 {[%clk 0:00:06.6]} 40...
Qf6 {[%clk 0:01:00.4]} 41. Rg1 {[%clk 0:00:06]} 41... f4 {[%clk 0:00:59.9]} 42.
h7+ {[%clk 0:00:04]} 42... Kh8 {[%clk 0:00:59.3]} 43. Qc3 {[%clk 0:00:03]} 43...
Qg7 {[%clk 0:00:54.6]} 44. c6 {[%clk 0:00:02.6]} 44... bxc6 {[%clk 0:00:52]} 45.
Qxc6 {[%clk 0:00:03.3]} 45... e4+ {[%clk 0:00:52.5]} 46. Kb1 {[%clk 0:00:01.9]}
46... Rb8 {[%clk 0:00:49.4]} 47. b4 {[%clk 0:00:01.2]} 47... Bf5 {[%clk
0:00:47.4]} 48. Qc5 {[%clk 0:00:01.5]} 48... Bxh7 {[%clk 0:00:44.3]} 0-1

[Event "*** Titled Tuesday Blitz"]
[Site "Chess.com"]
[Date "2021.04.27"]
[Round "11"]
[White "monikarozman"]
[Black "Shuvalov"]
[Result "1/2-1/2"]
[WhiteElo "2239"]
[BlackElo "2436"]
[TimeControl "180+1"]
[EndTime "12:04:15 PDT"]
[Termination "Game drawn by repetition"]

1. d4 {[%clk 0:03:00.9]} 1... Nf6 {[%clk 0:02:49.3]} 2. c4 {[%clk 0:03:00.6]}
2... g6 {[%clk 0:02:48.9]} 3. Nc3 {[%clk 0:03:00.3]} 3... d5 {[%clk 0:02:48.6]}
4. cxd5 {[%clk 0:02:58.5]} 4... Nxd5 {[%clk 0:02:48.7]} 5. e4 {[%clk 0:02:58.9]}
5... Nxc3 {[%clk 0:02:48.8]} 6. bxc3 {[%clk 0:02:59.6]} 6... Bg7 {[%clk
0:02:49.6]} 7. Bc4 {[%clk 0:02:59.6]} 7... c5 {[%clk 0:02:49.2]} 8. Ne2 {[%clk
0:02:58.6]} 8... O-O {[%clk 0:02:48.1]} 9. O-O {[%clk 0:02:58.1]} 9... b6 {[%clk
0:02:41.4]} 10. Be3 {[%clk 0:02:48.1]} 10... Nc6 {[%clk 0:02:36.2]} 11. h4
{[%clk 0:02:24.9]} 11... cxd4 {[%clk 0:02:11.4]} 12. cxd4 {[%clk 0:02:23.2]}
12... Bg4 {[%clk 0:02:10.5]} 13. f3 {[%clk 0:02:18.9]} 13... Na5 {[%clk
0:02:09.2]} 14. Bd3 {[%clk 0:02:16.1]} 14... Be6 {[%clk 0:02:08.9]} 15. d5
{[%clk 0:02:05.9]} 15... Bxa1 {[%clk 0:02:07.7]} 16. Qxa1 {[%clk 0:02:06.8]}
16... f6 {[%clk 0:02:06.9]} 17. Kh1 {[%clk 0:01:56.8]} 17... Bd7 {[%clk
0:01:54.5]} 18. Bh6 {[%clk 0:01:56.1]} 18... Re8 {[%clk 0:01:52.9]} 19. e5
{[%clk 0:01:41.8]} 19... Nb7 {[%clk 0:01:33.7]} 20. h5 {[%clk 0:01:32.4]} 20...
Nc5 {[%clk 0:01:25.8]} 21. Bc4 {[%clk 0:01:27.1]} 21... b5 {[%clk 0:01:11.3]}
22. Bb3 {[%clk 0:00:51.6]} 22... Nxb3 {[%clk 0:01:09.2]} 23. axb3 {[%clk
0:00:52.5]} 23... Bf5 {[%clk 0:00:59.3]} 24. Rd1 {[%clk 0:00:50.8]} 24... gxh5
{[%clk 0:00:45.2]} 25. Nf4 {[%clk 0:00:40.9]} 25... Bg6 {[%clk 0:00:32.4]} 26.
Ne6 {[%clk 0:00:36.9]} 26... Qd7 {[%clk 0:00:15.8]} 27. exf6 {[%clk 0:00:34.4]}
27... exf6 {[%clk 0:00:16.7]} 28. Qxf6 {[%clk 0:00:34.4]} 28... Qf7 {[%clk
0:00:16.9]} 29. Qg5 {[%clk 0:00:22.9]} 29... a5 {[%clk 0:00:16.3]} 30. Rc1
{[%clk 0:00:17.7]} 30... a4 {[%clk 0:00:15.6]} 31. Rc7 {[%clk 0:00:17.7]} 31...
Qf5 {[%clk 0:00:12.5]} 32. Qd2 {[%clk 0:00:09.5]} 32... Qe5 {[%clk 0:00:07.8]}
33. Rg7+ {[%clk 0:00:06.1]} 33... Kh8 {[%clk 0:00:07.7]} 34. Rd7 {[%clk
0:00:05.4]} 34... Kg8 {[%clk 0:00:06]} 35. Rg7+ {[%clk 0:00:04.9]} 35... Kh8
{[%clk 0:00:06.4]} 36. Rd7 {[%clk 0:00:05.2]} 36... Kg8 {[%clk 0:00:06.6]} 37.
Rg7+ {[%clk 0:00:03.6]} 1/2-1/2

[Event "*** Titled Tuesday Blitz"]
[Site "Chess.com"]
[Date "2021.04.27"]
[Round "11"]
[White "vinniethepooh"]
[Black "ChadBiryani"]
[Result "1-0"]
[WhiteElo "2704"]
[BlackElo "2356"]
[TimeControl "180+1"]
[EndTime "12:04:20 PDT"]
[Termination "vinniethepooh won by checkmate"]

1. d4 {[%clk 0:03:00.9]} 1... f5 {[%clk 0:02:58.3]} 2. g3 {[%clk 0:02:59.7]}
2... Nf6 {[%clk 0:02:57.8]} 3. Bg2 {[%clk 0:03:00.1]} 3... e6 {[%clk 0:02:56.2]}
4. c4 {[%clk 0:02:58.6]} 4... Bd6 {[%clk 0:02:56.2]} 5. Nc3 {[%clk 0:02:57.5]}
5... O-O {[%clk 0:02:56.1]} 6. Qc2 {[%clk 0:02:56.6]} 6... a6 {[%clk 0:02:53.1]}
7. Nh3 {[%clk 0:02:56.6]} 7... c5 {[%clk 0:02:51.9]} 8. dxc5 {[%clk 0:02:28.7]}
8... Bxc5 {[%clk 0:02:47.6]} 9. O-O {[%clk 0:02:29.6]} 9... Nc6 {[%clk
0:02:44.3]} 10. Bf4 {[%clk 0:02:29.8]} 10... d6 {[%clk 0:02:39.3]} 11. Rad1
{[%clk 0:02:28.9]} 11... Qe7 {[%clk 0:02:31.1]} 12. a3 {[%clk 0:02:23.3]} 12...
e5 {[%clk 0:02:25.1]} 13. Bg5 {[%clk 0:02:20.9]} 13... Nd4 {[%clk 0:02:24.6]}
14. Qb1 {[%clk 0:02:13.2]} 14... Be6 {[%clk 0:02:11.8]} 15. e3 {[%clk
0:02:04.5]} 15... Nc6 {[%clk 0:02:06.3]} 16. b4 {[%clk 0:02:04]} 16... Ba7
{[%clk 0:02:06]} 17. Nd5 {[%clk 0:01:56.6]} 17... Qf7 {[%clk 0:02:04.8]} 18.
Bxf6 {[%clk 0:01:51.8]} 18... gxf6 {[%clk 0:02:04.4]} 19. b5 {[%clk 0:01:49.3]}
19... axb5 {[%clk 0:01:41.9]} 20. cxb5 {[%clk 0:01:50.2]} 20... Na5 {[%clk
0:01:35.2]} 21. Qb4 {[%clk 0:01:42.4]} 21... Bc5 {[%clk 0:01:33.9]} 22. Qh4
{[%clk 0:01:41.2]} 22... Kh8 {[%clk 0:01:26.4]} 23. a4 {[%clk 0:01:32]} 23... b6
{[%clk 0:01:10.8]} 24. Nxf6 {[%clk 0:01:23.8]} 24... Ra7 {[%clk 0:00:46]} 25.
Nd5 {[%clk 0:01:11.7]} 25... Qg6 {[%clk 0:00:36.3]} 26. Ng5 {[%clk 0:01:11.4]}
26... Bg8 {[%clk 0:00:34.9]} 27. Kh1 {[%clk 0:01:11.7]} 27... e4 {[%clk
0:00:26.8]} 28. Nf4 {[%clk 0:01:08.4]} 28... Qf6 {[%clk 0:00:27.1]} 29. Qh5
{[%clk 0:00:43.3]} 29... Bb3 {[%clk 0:00:16.1]} 30. Rc1 {[%clk 0:00:39.6]} 30...
Bxa4 {[%clk 0:00:15.1]} 31. Nge6 {[%clk 0:00:36.7]} 31... Rg8 {[%clk 0:00:14.1]}
32. Bh3 {[%clk 0:00:35.1]} 32... Rf7 {[%clk 0:00:12.4]} 33. Rfd1 {[%clk
0:00:27.1]} 33... Bxd1 {[%clk 0:00:12.1]} 34. Rxd1 {[%clk 0:00:25.8]} 34... Nc4
{[%clk 0:00:12.7]} 35. Nxc5 {[%clk 0:00:19.7]} 35... bxc5 {[%clk 0:00:10.9]} 36.
Nd5 {[%clk 0:00:20]} 36... Qb2 {[%clk 0:00:08]} 37. Qxf7 {[%clk 0:00:17]} 37...
Qxf2 {[%clk 0:00:05.2]} 38. Rf1 {[%clk 0:00:12.3]} 38... Qb2 {[%clk 0:00:01.9]}
39. Nf6 {[%clk 0:00:11.9]} 39... Rg7 {[%clk 0:00:02.4]} 40. Qf8+ {[%clk
0:00:12]} 40... Rg8 {[%clk 0:00:02.8]} 41. Qxg8# {[%clk 0:00:12.9]} 1-0

[Event "*** Titled Tuesday Blitz"]
[Site "Chess.com"]
[Date "2021.04.27"]
[Round "11"]
[White "GM_dmitrij"]
[Black "Konavets"]
[Result "0-1"]
[WhiteElo "2955"]
[BlackElo "2974"]
[TimeControl "180+1"]
[EndTime "12:04:21 PDT"]
[Termination "Konavets won on time"]

1. e4 {[%clk 0:03:00.9]} 1... c6 {[%clk 0:02:58.2]} 2. d4 {[%clk 0:02:57.8]}
2... d5 {[%clk 0:02:59.1]} 3. e5 {[%clk 0:02:58.1]} 3... Bf5 {[%clk 0:02:59.2]}
4. Nf3 {[%clk 0:02:53]} 4... e6 {[%clk 0:02:59.3]} 5. Be2 {[%clk 0:02:52.6]}
5... Ne7 {[%clk 0:02:57]} 6. O-O {[%clk 0:02:51.7]} 6... h6 {[%clk 0:02:57.4]}
7. c3 {[%clk 0:02:49.1]} 7... Nd7 {[%clk 0:02:53.5]} 8. a4 {[%clk 0:02:47.9]}
8... a5 {[%clk 0:02:53.4]} 9. Na3 {[%clk 0:02:47.7]} 9... Qc7 {[%clk 0:02:53.4]}
10. Ne1 {[%clk 0:02:37.6]} 10... g5 {[%clk 0:02:49.2]} 11. f4 {[%clk 0:02:33.3]}
11... Bg7 {[%clk 0:02:44.2]} 12. Nac2 {[%clk 0:02:26.6]} 12... O-O-O {[%clk
0:02:39.3]} 13. b4 {[%clk 0:02:16.6]} 13... f6 {[%clk 0:02:35.8]} 14. Bd3 {[%clk
0:02:11.4]} 14... Be4 {[%clk 0:02:15.9]} 15. bxa5 {[%clk 0:02:06.8]} 15... Qxa5
{[%clk 0:02:02.6]} 16. Ba3 {[%clk 0:02:06.7]} 16... Ng6 {[%clk 0:02:01.7]} 17.
Bb4 {[%clk 0:02:05.1]} 17... Qa7 {[%clk 0:02:00.1]} 18. Bxe4 {[%clk 0:01:51]}
18... dxe4 {[%clk 0:02:01]} 19. exf6 {[%clk 0:01:49.7]} 19... Nxf6 {[%clk
0:01:50.7]} 20. f5 {[%clk 0:01:40.9]} 20... Nf4 {[%clk 0:01:24]} 21. fxe6 {[%clk
0:01:38.6]} 21... Nxe6 {[%clk 0:01:23.8]} 22. Qe2 {[%clk 0:01:22.8]} 22... Nf4
{[%clk 0:01:11.1]} 23. Qc4 {[%clk 0:01:18.5]} 23... N6d5 {[%clk 0:01:08.3]} 24.
g3 {[%clk 0:01:11]} 24... Ne6 {[%clk 0:01:01.2]} 25. Ng2 {[%clk 0:00:55.2]}
25... Rhe8 {[%clk 0:01:01.3]} 26. Kh1 {[%clk 0:00:47]} 26... Qa6 {[%clk
0:00:43.2]} 27. Qb3 {[%clk 0:00:40.5]} 27... e3 {[%clk 0:00:25.2]} 28. Ngxe3
{[%clk 0:00:36.8]} 28... Nxe3 {[%clk 0:00:25.5]} 29. Nxe3 {[%clk 0:00:36.8]}
29... c5 {[%clk 0:00:26]} 30. dxc5 {[%clk 0:00:25.7]} 30... Qc6+ {[%clk
0:00:25.2]} 31. Kg1 {[%clk 0:00:18.8]} 31... Nf4 {[%clk 0:00:17.8]} 32. gxf4
{[%clk 0:00:19.7]} 32... Rxe3 {[%clk 0:00:16.5]} 33. Qf7 {[%clk 0:00:09.1]}
33... Re2 {[%clk 0:00:16.1]} 34. Rf2 {[%clk 0:00:07.2]} 34... Rxf2 {[%clk
0:00:11.5]} 35. Kxf2 {[%clk 0:00:08.1]} 35... Rd2+ {[%clk 0:00:11.6]} 36. Ke3
{[%clk 0:00:06.2]} 36... Qg2 {[%clk 0:00:10]} 37. Qg8+ {[%clk 0:00:02.1]} 37...
Rd8 {[%clk 0:00:09.5]} 38. Qe6+ {[%clk 0:00:02.6]} 38... Kb8 {[%clk 0:00:07.7]}
0-1

[Event "*** Titled Tuesday Blitz"]
[Site "Chess.com"]
[Date "2021.04.27"]
[Round "11"]
[White "mjray79"]
[Black "NateSolon"]
[Result "0-1"]
[WhiteElo "2465"]
[BlackElo "2626"]
[TimeControl "180+1"]
[EndTime "12:04:21 PDT"]
[Termination "NateSolon won by resignation"]

1. d4 {[%clk 0:03:00.9]} 1... Nf6 {[%clk 0:02:59.7]} 2. c4 {[%clk 0:03:01.3]}
2... e6 {[%clk 0:02:59.8]} 3. g3 {[%clk 0:03:01.4]} 3... d5 {[%clk 0:02:59.7]}
4. Nf3 {[%clk 0:03:01.7]} 4... dxc4 {[%clk 0:02:59.8]} 5. Bg2 {[%clk 0:03:02.1]}
5... a6 {[%clk 0:03:00]} 6. O-O {[%clk 0:02:59.5]} 6... Nc6 {[%clk 0:03:00.1]}
7. e3 {[%clk 0:02:59.3]} 7... Rb8 {[%clk 0:02:57.9]} 8. Qe2 {[%clk 0:02:59.4]}
8... b5 {[%clk 0:02:58.1]} 9. b3 {[%clk 0:03:00.1]} 9... cxb3 {[%clk 0:02:58]}
10. axb3 {[%clk 0:03:01]} 10... Bb7 {[%clk 0:02:57.3]} 11. Bb2 {[%clk
0:03:01.1]} 11... Be7 {[%clk 0:02:56.1]} 12. Rc1 {[%clk 0:03:01.1]} 12... O-O
{[%clk 0:02:54.3]} 13. Nbd2 {[%clk 0:02:59.2]} 13... Nb4 {[%clk 0:02:52.7]} 14.
e4 {[%clk 0:02:55.2]} 14... Nd7 {[%clk 0:02:42.9]} 15. Qe3 {[%clk 0:02:36.1]}
15... Rc8 {[%clk 0:02:29.4]} 16. d5 {[%clk 0:02:23.4]} 16... exd5 {[%clk
0:02:22.8]} 17. e5 {[%clk 0:02:23.8]} 17... c5 {[%clk 0:02:11.2]} 18. e6 {[%clk
0:02:24.1]} 18... fxe6 {[%clk 0:01:34.9]} 19. Qxe6+ {[%clk 0:02:25]} 19... Kh8
{[%clk 0:01:35]} 20. Re1 {[%clk 0:02:18.7]} 20... Bf6 {[%clk 0:01:30.5]} 21.
Bxf6 {[%clk 0:02:10.9]} 21... Rxf6 {[%clk 0:01:27.1]} 22. Qh3 {[%clk 0:02:06.4]}
22... h6 {[%clk 0:01:11.5]} 23. Re2 {[%clk 0:01:56.8]} 23... Nf8 {[%clk
0:00:56.5]} 24. Qh5 {[%clk 0:01:49.7]} 24... d4 {[%clk 0:00:45.6]} 25. Rae1
{[%clk 0:01:48.3]} 25... Qd5 {[%clk 0:00:44.6]} 26. Re5 {[%clk 0:01:39.7]} 26...
Qd6 {[%clk 0:00:38]} 27. Ng5 {[%clk 0:01:32.6]} 27... Bxg2 {[%clk 0:00:33.4]}
28. Kxg2 {[%clk 0:01:25.3]} 28... Nd3 {[%clk 0:00:32.7]} 29. Re8 {[%clk
0:01:18.4]} 29... Nxe1+ {[%clk 0:00:32.4]} 30. Rxe1 {[%clk 0:01:18.6]} 30...
Qd5+ {[%clk 0:00:31.4]} 31. Nde4 {[%clk 0:01:17.3]} 31... Rf5 {[%clk 0:00:27.4]}
32. Qh3 {[%clk 0:01:02.4]} 32... Re8 {[%clk 0:00:21.3]} 33. Kf1 {[%clk
0:00:59.8]} 33... Rxg5 {[%clk 0:00:20.1]} 34. Nxg5 {[%clk 0:01:00.2]} 34...
Rxe1+ {[%clk 0:00:20.9]} 35. Kxe1 {[%clk 0:01:01.1]} 35... Qxg5 {[%clk
0:00:21.1]} 36. Qc8 {[%clk 0:01:00.6]} 36... Qe7+ {[%clk 0:00:20.3]} 37. Kd2
{[%clk 0:01:00.3]} 37... Kh7 {[%clk 0:00:20.5]} 38. Qf5+ {[%clk 0:00:59.7]}
38... Ng6 {[%clk 0:00:21]} 39. h4 {[%clk 0:01:00.2]} 39... Qe5 {[%clk
0:00:19.4]} 40. Qd3 {[%clk 0:00:58.2]} 40... h5 {[%clk 0:00:19.3]} 41. Qf3
{[%clk 0:00:54.1]} 41... c4 {[%clk 0:00:18.1]} 42. bxc4 {[%clk 0:00:53.1]} 42...
bxc4 {[%clk 0:00:19]} 43. Qc6 {[%clk 0:00:52.8]} 43... c3+ {[%clk 0:00:18.8]}
44. Kd3 {[%clk 0:00:52.8]} 44... Ne7 {[%clk 0:00:17.8]} 45. Qb7 {[%clk
0:00:44.2]} 45... Nd5 {[%clk 0:00:15.4]} 46. f4 {[%clk 0:00:33.5]} 46... Qe3+
{[%clk 0:00:14.7]} 47. Kc4 {[%clk 0:00:33.7]} 47... Nf6 {[%clk 0:00:14.1]} 48.
Qc8 {[%clk 0:00:30.9]} 48... c2 {[%clk 0:00:12.7]} 49. Qf5+ {[%clk 0:00:31.2]}
49... Kg8 {[%clk 0:00:13]} 50. Qc8+ {[%clk 0:00:29.6]} 50... Kf7 {[%clk
0:00:12.2]} 51. Qc7+ {[%clk 0:00:27.3]} 51... Qe7 {[%clk 0:00:12.8]} 0-1

[Event "*** Titled Tuesday Blitz"]
[Site "Chess.com"]
[Date "2021.04.27"]
[Round "11"]
[White "Jumbo"]
[Black "OlegKrivonosov"]
[Result "1-0"]
[WhiteElo "2794"]
[BlackElo "2678"]
[TimeControl "180+1"]
[EndTime "12:04:27 PDT"]
[Termination "Jumbo won on time"]

1. e4 {[%clk 0:03:00.9]} 1... e5 {[%clk 0:02:59.1]} 2. Nf3 {[%clk 0:02:59.3]}
2... Nc6 {[%clk 0:02:58.3]} 3. Bc4 {[%clk 0:02:59.7]} 3... Bc5 {[%clk
0:02:57.1]} 4. c3 {[%clk 0:02:59.5]} 4... Nf6 {[%clk 0:02:56.2]} 5. d3 {[%clk
0:02:58.6]} 5... d6 {[%clk 0:02:55.6]} 6. Bg5 {[%clk 0:02:51.4]} 6... h6 {[%clk
0:02:55.5]} 7. Bh4 {[%clk 0:02:51.9]} 7... g5 {[%clk 0:02:49.6]} 8. Bg3 {[%clk
0:02:52.3]} 8... Nh5 {[%clk 0:02:35.3]} 9. d4 {[%clk 0:02:37.7]} 9... Nxg3
{[%clk 0:02:30.1]} 10. hxg3 {[%clk 0:02:37.2]} 10... Bb6 {[%clk 0:02:29.9]} 11.
dxe5 {[%clk 0:02:29.6]} 11... Nxe5 {[%clk 0:02:29.4]} 12. Nxe5 {[%clk
0:01:40.1]} 12... dxe5 {[%clk 0:02:28]} 13. Qh5 {[%clk 0:01:40.4]} 13... Qf6
{[%clk 0:02:22.6]} 14. Rf1 {[%clk 0:01:35.3]} 14... Be6 {[%clk 0:02:05.2]} 15.
Na3 {[%clk 0:01:34.6]} 15... O-O-O {[%clk 0:02:02.8]} 16. Qf3 {[%clk 0:01:34.1]}
16... Qe7 {[%clk 0:01:52.8]} 17. Bxe6+ {[%clk 0:01:30.2]} 17... fxe6 {[%clk
0:01:37.4]} 18. Rd1 {[%clk 0:01:24.7]} 18... Rhf8 {[%clk 0:01:26.3]} 19. Qe2
{[%clk 0:01:15.5]} 19... Qc5 {[%clk 0:01:06.4]} 20. Rxd8+ {[%clk 0:00:49.8]}
20... Rxd8 {[%clk 0:01:04.4]} 21. g4 {[%clk 0:00:47.6]} 21... a6 {[%clk
0:00:52.4]} 22. g3 {[%clk 0:00:44.4]} 22... Rf8 {[%clk 0:00:47.7]} 23. f3 {[%clk
0:00:35.8]} 23... c6 {[%clk 0:00:28.9]} 24. Rh1 {[%clk 0:00:33.2]} 24... Rf6
{[%clk 0:00:25]} 25. Kf1 {[%clk 0:00:31.2]} 25... Qe3 {[%clk 0:00:19.5]} 26.
Qxe3 {[%clk 0:00:30.6]} 26... Bxe3 {[%clk 0:00:19.9]} 27. Nc4 {[%clk 0:00:26]}
27... Ba7 {[%clk 0:00:16.1]} 28. Ke2 {[%clk 0:00:23.8]} 28... Bb8 {[%clk
0:00:16]} 29. a4 {[%clk 0:00:24]} 29... b5 {[%clk 0:00:13.2]} 30. Nd2 {[%clk
0:00:19.3]} 30... Ba7 {[%clk 0:00:11.4]} 31. Ra1 {[%clk 0:00:16.2]} 31... Kb7
{[%clk 0:00:10.8]} 32. Nb3 {[%clk 0:00:14.9]} 32... Bb6 {[%clk 0:00:11.1]} 33.
a5 {[%clk 0:00:12.2]} 33... Ba7 {[%clk 0:00:10.1]} 34. Rd1 {[%clk 0:00:12.3]}
34... Kc7 {[%clk 0:00:09.8]} 35. Nc1 {[%clk 0:00:12.2]} 35... Bc5 {[%clk
0:00:08.7]} 36. Nd3 {[%clk 0:00:12]} 36... Bd6 {[%clk 0:00:08.7]} 37. b3 {[%clk
0:00:12.5]} 37... c5 {[%clk 0:00:07.6]} 38. c4 {[%clk 0:00:12.8]} 38... b4
{[%clk 0:00:06.9]} 39. Rh1 {[%clk 0:00:12.1]} 39... Kd7 {[%clk 0:00:03.3]} 40.
f4 {[%clk 0:00:11.8]} 1-0

[Event "*** Titled Tuesday Blitz"]
[Site "Chess.com"]
[Date "2021.04.27"]
[Round "11"]
[White "tapu2"]
[Black "Natalya_Buksa"]
[Result "1/2-1/2"]
[WhiteElo "2723"]
[BlackElo "2543"]
[TimeControl "180+1"]
[EndTime "12:04:28 PDT"]
[Termination "Game drawn - insufficient material"]

1. e4 {[%clk 0:03:00.9]} 1... c5 {[%clk 0:03:00.1]} 2. Nc3 {[%clk 0:03:01.3]}
2... Nc6 {[%clk 0:02:59.7]} 3. Bb5 {[%clk 0:03:01.8]} 3... Nd4 {[%clk
0:03:00.1]} 4. Nf3 {[%clk 0:03:02.2]} 4... Nxb5 {[%clk 0:02:58.7]} 5. Nxb5
{[%clk 0:03:02.1]} 5... d6 {[%clk 0:02:59.1]} 6. d4 {[%clk 0:03:02.3]} 6... a6
{[%clk 0:02:59.2]} 7. Nc3 {[%clk 0:03:02]} 7... cxd4 {[%clk 0:02:59.4]} 8. Qxd4
{[%clk 0:03:02.5]} 8... Nf6 {[%clk 0:02:58.5]} 9. Bg5 {[%clk 0:03:02]} 9... e6
{[%clk 0:02:52]} 10. O-O-O {[%clk 0:02:51.9]} 10... h6 {[%clk 0:02:49.8]} 11.
Bh4 {[%clk 0:02:48.8]} 11... Be7 {[%clk 0:02:43]} 12. e5 {[%clk 0:02:43.6]}
12... dxe5 {[%clk 0:02:38]} 13. Qxe5 {[%clk 0:02:42.7]} 13... Qb6 {[%clk
0:02:25.7]} 14. Ne4 {[%clk 0:02:42.2]} 14... Nxe4 {[%clk 0:01:53.9]} 15. Bxe7
{[%clk 0:02:40.3]} 15... Kxe7 {[%clk 0:01:53.4]} 16. Qxe4 {[%clk 0:02:39.6]}
16... Re8 {[%clk 0:01:43.6]} 17. Ne5 {[%clk 0:02:34.8]} 17... Qc5 {[%clk
0:01:03.7]} 18. Rhe1 {[%clk 0:02:31.6]} 18... a5 {[%clk 0:01:01.7]} 19. Qh7
{[%clk 0:02:12.4]} 19... Qxf2 {[%clk 0:00:40.9]} 20. Qxg7 {[%clk 0:02:10]} 20...
Qf6 {[%clk 0:00:40.6]} 21. Qg3 {[%clk 0:02:01]} 21... Qg5+ {[%clk 0:00:40.2]}
22. Kb1 {[%clk 0:01:52.4]} 22... Qxg3 {[%clk 0:00:39.7]} 23. hxg3 {[%clk
0:01:53.3]} 23... Rg8 {[%clk 0:00:38.3]} 24. Rd3 {[%clk 0:01:51.6]} 24... Ra6
{[%clk 0:00:32.8]} 25. Rh1 {[%clk 0:01:39]} 25... Rg5 {[%clk 0:00:32]} 26. Re3
{[%clk 0:01:34.6]} 26... Rd6 {[%clk 0:00:19.1]} 27. Kc1 {[%clk 0:01:33.3]} 27...
Rd5 {[%clk 0:00:15.4]} 28. Nd3 {[%clk 0:01:32.5]} 28... h5 {[%clk 0:00:12.3]}
29. Rh4 {[%clk 0:01:27.8]} 29... Bd7 {[%clk 0:00:10.7]} 30. c4 {[%clk
0:01:26.7]} 30... Rdf5 {[%clk 0:00:09.7]} 31. Kd2 {[%clk 0:01:22.7]} 31... Bc6
{[%clk 0:00:10]} 32. Nf4 {[%clk 0:01:22]} 32... Kd7 {[%clk 0:00:08.6]} 33. Rd3+
{[%clk 0:01:21.3]} 33... Kc7 {[%clk 0:00:08.6]} 34. b3 {[%clk 0:01:20.9]} 34...
e5 {[%clk 0:00:08.9]} 35. Nh3 {[%clk 0:01:19.1]} 35... Rg4 {[%clk 0:00:07.9]}
36. Ke3 {[%clk 0:01:07.9]} 36... Bxg2 {[%clk 0:00:07.3]} 37. Rxg4 {[%clk
0:01:07.8]} 37... hxg4 {[%clk 0:00:07.4]} 38. Nf2 {[%clk 0:01:08.4]} 38... Rf3+
{[%clk 0:00:07.3]} 39. Ke2 {[%clk 0:01:08.8]} 39... Rxd3 {[%clk 0:00:07]} 40.
Kxd3 {[%clk 0:01:09.5]} 40... f5 {[%clk 0:00:07.4]} 41. a3 {[%clk 0:01:07.7]}
41... Kd6 {[%clk 0:00:07.5]} 42. b4 {[%clk 0:01:07.8]} 42... axb4 {[%clk
0:00:08.4]} 43. axb4 {[%clk 0:01:08.7]} 43... Bf3 {[%clk 0:00:08.3]} 44. Ke3
{[%clk 0:01:09]} 44... Ke6 {[%clk 0:00:08.3]} 45. Nd3 {[%clk 0:01:09.1]} 45...
b6 {[%clk 0:00:04.9]} 46. Nb2 {[%clk 0:01:07.7]} 46... Kd6 {[%clk 0:00:04.9]}
47. Na4 {[%clk 0:01:06.3]} 47... Kc6 {[%clk 0:00:04.1]} 48. Nb2 {[%clk
0:01:04.5]} 48... Bg2 {[%clk 0:00:03.8]} 49. Nd3 {[%clk 0:01:04.6]} 49... Kd6
{[%clk 0:00:04.1]} 50. Kf2 {[%clk 0:01:02.3]} 50... Be4 {[%clk 0:00:03.7]} 51.
Nb2 {[%clk 0:01:02.7]} 51... f4 {[%clk 0:00:03.8]} 52. Na4 {[%clk 0:01:02]}
52... Kc6 {[%clk 0:00:03.6]} 53. Nc3 {[%clk 0:01:02.6]} 53... Bh1 {[%clk
0:00:02.9]} 54. Na4 {[%clk 0:01:02.6]} 54... b5 {[%clk 0:00:02.1]} 55. cxb5+
{[%clk 0:01:03.1]} 55... Kxb5 {[%clk 0:00:03]} 56. Nc5 {[%clk 0:01:04]} 56...
Kxb4 {[%clk 0:00:03.3]} 57. Nd3+ {[%clk 0:01:04.4]} 57... Kc4 {[%clk 0:00:03.7]}
58. Nxe5+ {[%clk 0:01:05.3]} 58... Kd4 {[%clk 0:00:04.2]} 59. Nxg4 {[%clk
0:01:05.8]} 59... Ke4 {[%clk 0:00:04.1]} 60. gxf4 {[%clk 0:01:05]} 60... Kxf4
{[%clk 0:00:04.5]} 1/2-1/2